[Event "*** Titled Tuesday Blitz"]
[Site "Chess.com"]
[Date "2020.11.03"]
[Round "7"]
[White "Mazetovic"]
[Black "KaterinaMiroshnik"]
[Result "0-1"]
[WhiteElo "2740"]
[BlackElo "2548"]
[TimeControl "180+1"]
[EndTime "11:22:04 PST"]
[Termination "KaterinaMiroshnik won by resignation"]

1. e4 {[%clk 0:03:00.9]} 1... g6 {[%clk 0:03:00.9]} 2. d4 {[%clk 0:03:00.3]}
2... Bg7 {[%clk 0:03:00.9]} 3. Nc3 {[%clk 0:03:00.4]} 3... d6 {[%clk 0:03:00]}
4. Be3 {[%clk 0:02:59]} 4... Nd7 {[%clk 0:02:59.9]} 5. f4 {[%clk 0:02:56.2]}
5... e5 {[%clk 0:02:59.3]} 6. Nf3 {[%clk 0:02:51.3]} 6... exf4 {[%clk
0:02:52.4]} 7. Bxf4 {[%clk 0:02:50.9]} 7... Ngf6 {[%clk 0:02:51.9]} 8. Qd2
{[%clk 0:02:49.9]} 8... O-O {[%clk 0:02:48.7]} 9. O-O-O {[%clk 0:02:49.3]} 9...
Re8 {[%clk 0:02:44.6]} 10. Bc4 {[%clk 0:02:35.4]} 10... Nb6 {[%clk 0:02:36.5]}
11. Bb3 {[%clk 0:02:31.7]} 11... Be6 {[%clk 0:02:34.8]} 12. Bg5 {[%clk
0:02:20.8]} 12... Bxb3 {[%clk 0:02:28.2]} 13. axb3 {[%clk 0:02:20.2]} 13... Qd7
{[%clk 0:02:21.5]} 14. Rhe1 {[%clk 0:02:11.9]} 14... a5 {[%clk 0:02:16.2]} 15.
e5 {[%clk 0:02:05.6]} 15... dxe5 {[%clk 0:01:58]} 16. dxe5 {[%clk 0:01:59.2]}
16... Qxd2+ {[%clk 0:01:56.6]} 17. Rxd2 {[%clk 0:01:58.2]} 17... Nfd7 {[%clk
0:01:56.3]} 18. Nb5 {[%clk 0:01:43.1]} 18... Rac8 {[%clk 0:01:48.2]} 19. Bf4
{[%clk 0:01:26.9]} 19... Nc5 {[%clk 0:01:38.2]} 20. Red1 {[%clk 0:01:20.2]}
20... Ne6 {[%clk 0:01:34.7]} 21. Be3 {[%clk 0:01:19.9]} 21... Na8 {[%clk
0:01:23.6]} 22. Rd7 {[%clk 0:01:08.1]} 22... Bf8 {[%clk 0:01:13.6]} 23. c3
{[%clk 0:01:03.4]} 23... Bc5 {[%clk 0:01:10.5]} 24. Bh6 {[%clk 0:00:55.7]} 24...
Nb6 {[%clk 0:01:07.4]} 25. R7d3 {[%clk 0:00:50.4]} 25... c6 {[%clk 0:01:03.7]}
26. Nd6 {[%clk 0:00:48.3]} 26... Bxd6 {[%clk 0:01:03.5]} 27. Rxd6 {[%clk
0:00:36.7]} 27... a4 {[%clk 0:00:59.8]} 28. Nd2 {[%clk 0:00:33]} 28... axb3
{[%clk 0:00:58.6]} 29. Nxb3 {[%clk 0:00:27.7]} 29... Nc4 {[%clk 0:00:51.9]} 30.
Rd7 {[%clk 0:00:27]} 30... b5 {[%clk 0:00:48]} 31. Re1 {[%clk 0:00:13.2]} 31...
Red8 {[%clk 0:00:45.6]} 32. Rxd8+ {[%clk 0:00:12.9]} 32... Rxd8 {[%clk
0:00:46.5]} 33. Nd2 {[%clk 0:00:12]} 33... Nc5 {[%clk 0:00:40.3]} 34. Nxc4
{[%clk 0:00:10.9]} 34... Nd3+ {[%clk 0:00:39.6]} 35. Kb1 {[%clk 0:00:08.2]}
35... Nxe1 {[%clk 0:00:40.5]} 36. Nd6 {[%clk 0:00:06.5]} 36... Rd7 {[%clk
0:00:39.2]} 37. Ne4 {[%clk 0:00:06.3]} 37... Rd1+ {[%clk 0:00:37]} 38. Ka2
{[%clk 0:00:06]} 38... Nxg2 {[%clk 0:00:34.5]} 39. Nf6+ {[%clk 0:00:05.7]} 39...
Kh8 {[%clk 0:00:34.4]} 40. Kb3 {[%clk 0:00:05.5]} 40... Ne1 {[%clk 0:00:32.4]}
41. Kb4 {[%clk 0:00:05.7]} 41... Nd3+ {[%clk 0:00:32.1]} 42. Ka5 {[%clk
0:00:06.1]} 42... Nxe5 {[%clk 0:00:31.6]} 43. Kb6 {[%clk 0:00:06.5]} 43... g5
{[%clk 0:00:22.8]} 44. Bxg5 {[%clk 0:00:06.1]} 44... Kg7 {[%clk 0:00:22]} 45.
Ne4 {[%clk 0:00:04.9]} 45... Kg6 {[%clk 0:00:20.9]} 46. Bf4 {[%clk 0:00:02.8]}
46... f5 {[%clk 0:00:20]} 47. Nc5 {[%clk 0:00:02.1]} 47... Nc4+ {[%clk
0:00:19.1]} 48. Kxc6 {[%clk 0:00:02.1]} 48... Rf1 {[%clk 0:00:19.6]} 49. Bc7
{[%clk 0:00:01.8]} 49... f4 {[%clk 0:00:19.1]} 50. b3 {[%clk 0:00:02]} 50... Ne3
{[%clk 0:00:18]} 51. Kxb5 {[%clk 0:00:02.3]} 51... f3 {[%clk 0:00:18.2]} 52. c4
{[%clk 0:00:02.8]} 52... Nc2 {[%clk 0:00:18]} 53. Bg3 {[%clk 0:00:03]} 53...
Nd4+ {[%clk 0:00:18.1]} 54. Kb6 {[%clk 0:00:03.1]} 54... Ne2 {[%clk 0:00:19]}
55. Ne4 {[%clk 0:00:02.4]} 55... Nxg3 {[%clk 0:00:19]} 56. Nxg3 {[%clk
0:00:02.6]} 56... Rb1 {[%clk 0:00:19.4]} 57. c5 {[%clk 0:00:01.5]} 57... Rxb3+
{[%clk 0:00:19.1]} 58. Kc7 {[%clk 0:00:02.1]} 58... f2 {[%clk 0:00:19.1]} 59.
Nf1 {[%clk 0:00:02]} 59... Rb1 {[%clk 0:00:18.8]} 60. Ng3 {[%clk 0:00:02.1]}
60... f1=Q {[%clk 0:00:17.9]} 61. Nxf1 {[%clk 0:00:02.2]} 61... Rxf1 {[%clk
0:00:18.8]} 62. c6 {[%clk 0:00:03.1]} 62... Kf7 {[%clk 0:00:18]} 63. Kd7 {[%clk
0:00:03.1]} 63... Rd1+ {[%clk 0:00:17]} 64. Kc8 {[%clk 0:00:03.1]} 64... Ke7
{[%clk 0:00:17.9]} 65. c7 {[%clk 0:00:04]} 65... Rc1 {[%clk 0:00:15.6]} 0-1

[Event "*** Titled Tuesday Blitz"]
[Site "Chess.com"]
[Date "2020.11.03"]
[Round "7"]
[White "PavelShkapenko"]
[Black "Shield12"]
[Result "0-1"]
[WhiteElo "2640"]
[BlackElo "2904"]
[TimeControl "180+1"]
[EndTime "11:22:05 PST"]
[Termination "Shield12 won by resignation"]

1. e4 {[%clk 0:03:00.9]} 1... e5 {[%clk 0:03:00.6]} 2. Nf3 {[%clk 0:03:00.7]}
2... Nc6 {[%clk 0:03:01.3]} 3. Bc4 {[%clk 0:03:00.6]} 3... Bc5 {[%clk
0:03:00.9]} 4. c3 {[%clk 0:03:00.8]} 4... Nf6 {[%clk 0:03:01.1]} 5. d4 {[%clk
0:03:00.9]} 5... exd4 {[%clk 0:03:02]} 6. cxd4 {[%clk 0:03:01.5]} 6... Bb4+
{[%clk 0:03:02]} 7. Bd2 {[%clk 0:03:02.1]} 7... Nxe4 {[%clk 0:03:01.1]} 8. Bxb4
{[%clk 0:03:02]} 8... Nxb4 {[%clk 0:03:02]} 9. Bxf7+ {[%clk 0:03:02.4]} 9...
Kxf7 {[%clk 0:03:02.9]} 10. Qb3+ {[%clk 0:03:02.4]} 10... Kf8 {[%clk 0:03:01.2]}
11. Qxb4+ {[%clk 0:03:02.6]} 11... Qe7 {[%clk 0:03:01.9]} 12. Qxe7+ {[%clk
0:03:02.4]} 12... Kxe7 {[%clk 0:03:02.8]} 13. O-O {[%clk 0:03:02.6]} 13... Re8
{[%clk 0:03:03.3]} 14. Re1 {[%clk 0:03:01.3]} 14... Kd8 {[%clk 0:03:03.3]} 15.
Ne5 {[%clk 0:02:54.8]} 15... d5 {[%clk 0:03:01.1]} 16. Nf7+ {[%clk 0:02:46.2]}
16... Ke7 {[%clk 0:02:47.7]} 17. Ng5 {[%clk 0:02:41.8]} 17... Bf5 {[%clk
0:02:18.1]} 18. Nxe4 {[%clk 0:01:46.2]} 18... dxe4 {[%clk 0:02:16.6]} 19. f3
{[%clk 0:01:41.5]} 19... Kd7 {[%clk 0:02:12.7]} 20. fxe4 {[%clk 0:01:40]} 20...
Rxe4 {[%clk 0:02:12.4]} 21. Rxe4 {[%clk 0:01:39.9]} 21... Bxe4 {[%clk
0:02:13.3]} 22. Nc3 {[%clk 0:01:40.4]} 22... Bg6 {[%clk 0:02:09.8]} 23. Re1
{[%clk 0:01:30.6]} 23... Rf8 {[%clk 0:02:08.3]} 24. Rf1 {[%clk 0:01:26.6]} 24...
Re8 {[%clk 0:01:58.1]} 25. Kf2 {[%clk 0:01:26.3]} 25... c6 {[%clk 0:01:52]} 26.
Re1 {[%clk 0:01:25.7]} 26... Rf8+ {[%clk 0:01:51.9]} 27. Ke3 {[%clk 0:01:11.7]}
27... Kd6 {[%clk 0:01:49.4]} 28. b4 {[%clk 0:00:59.9]} 28... a5 {[%clk
0:01:36.9]} 29. b5 {[%clk 0:00:38.2]} 29... Re8+ {[%clk 0:01:35.4]} 30. Kd2
{[%clk 0:00:37.7]} 30... Rxe1 {[%clk 0:01:36.3]} 31. Kxe1 {[%clk 0:00:37.9]}
31... cxb5 {[%clk 0:01:36.7]} 32. Nxb5+ {[%clk 0:00:37.8]} 32... Kc6 {[%clk
0:01:30.8]} 33. Nc3 {[%clk 0:00:37.1]} 33... b5 {[%clk 0:01:30.9]} 34. a3 {[%clk
0:00:37.4]} 34... b4 {[%clk 0:01:28.8]} 35. axb4 {[%clk 0:00:37.2]} 35... axb4
{[%clk 0:01:29.7]} 36. Na4 {[%clk 0:00:22.4]} 36... Kd5 {[%clk 0:01:19.1]} 37.
Kd2 {[%clk 0:00:22.1]} 37... Kxd4 {[%clk 0:01:19.4]} 38. Nb2 {[%clk 0:00:22.3]}
38... Be4 {[%clk 0:01:16.6]} 39. g3 {[%clk 0:00:22.1]} 39... Bf5 {[%clk
0:01:16.8]} 40. Na4 {[%clk 0:00:22]} 40... Kc4 {[%clk 0:01:16]} 41. Kc1 {[%clk
0:00:19]} 41... Kb3 {[%clk 0:01:13]} 42. Nc5+ {[%clk 0:00:17.9]} 42... Kc3
{[%clk 0:01:12.1]} 43. Na4+ {[%clk 0:00:17.7]} 43... Kd3 {[%clk 0:01:06.3]} 44.
Nc5+ {[%clk 0:00:14.8]} 44... Ke3 {[%clk 0:01:06.6]} 45. Na6 {[%clk 0:00:15]}
45... Kf2 {[%clk 0:00:49.8]} 46. Nxb4 {[%clk 0:00:14.8]} 46... Kg2 {[%clk
0:00:50.3]} 47. Nd5 {[%clk 0:00:12.7]} 47... Kxh2 {[%clk 0:00:49.1]} 48. Ne3
{[%clk 0:00:13.2]} 48... Be6 {[%clk 0:00:47]} 49. g4 {[%clk 0:00:13.5]} 49...
Kg3 {[%clk 0:00:46.6]} 50. g5 {[%clk 0:00:12.7]} 50... Kf4 {[%clk 0:00:44.2]}
51. g6 {[%clk 0:00:12.4]} 51... h5 {[%clk 0:00:42.5]} 52. Kd2 {[%clk 0:00:12.5]}
52... Kg5 {[%clk 0:00:38.3]} 53. Ke2 {[%clk 0:00:12.8]} 53... Kxg6 {[%clk
0:00:38.8]} 54. Kf2 {[%clk 0:00:13.1]} 54... Kg5 {[%clk 0:00:39.1]} 55. Kg3
{[%clk 0:00:13]} 55... Bd7 {[%clk 0:00:38.4]} 56. Nc4 {[%clk 0:00:12.7]} 56...
h4+ {[%clk 0:00:36.6]} 57. Kh2 {[%clk 0:00:12.3]} 57... Kf4 {[%clk 0:00:36]} 58.
Nb6 {[%clk 0:00:10.9]} 58... Be6 {[%clk 0:00:36.2]} 59. Na4 {[%clk 0:00:11.1]}
59... g5 {[%clk 0:00:36]} 60. Nc5 {[%clk 0:00:12]} 60... Bd5 {[%clk 0:00:35.3]}
61. Nd3+ {[%clk 0:00:11.4]} 61... Kf5 {[%clk 0:00:35.2]} 62. Nf2 {[%clk
0:00:10.9]} 62... g4 {[%clk 0:00:34.8]} 63. Nd3 {[%clk 0:00:11]} 63... Be4
{[%clk 0:00:32.8]} 64. Nc5 {[%clk 0:00:10.7]} 64... Kf4 {[%clk 0:00:32.4]} 65.
Ne6+ {[%clk 0:00:10.4]} 65... Ke3 {[%clk 0:00:32.6]} 66. Ng5 {[%clk 0:00:10.3]}
66... Bf5 {[%clk 0:00:31.2]} 67. Kg2 {[%clk 0:00:09.7]} 67... Kf4 {[%clk
0:00:29]} 68. Nf7 {[%clk 0:00:09]} 68... h3+ {[%clk 0:00:28]} 69. Kh2 {[%clk
0:00:09.1]} 69... g3+ {[%clk 0:00:28.3]} 70. Kg1 {[%clk 0:00:09.4]} 70... h2+
{[%clk 0:00:28.1]} 0-1

[Event "*** Titled Tuesday Blitz"]
[Site "Chess.com"]
[Date "2020.11.03"]
[Round "7"]
[White "tylityli"]
[Black "Bacyanide"]
[Result "1-0"]
[WhiteElo "2282"]
[BlackElo "2398"]
[TimeControl "180+1"]
[EndTime "11:22:06 PST"]
[Termination "tylityli won on time"]

1. d4 {[%clk 0:02:52.6]} 1... Nf6 {[%clk 0:02:58.9]} 2. c4 {[%clk 0:02:51.6]}
2... g6 {[%clk 0:02:59.2]} 3. Nc3 {[%clk 0:02:51.4]} 3... Bg7 {[%clk 0:02:59.5]}
4. e4 {[%clk 0:02:51.8]} 4... d6 {[%clk 0:02:58.2]} 5. Nge2 {[%clk 0:02:51.8]}
5... O-O {[%clk 0:02:57.6]} 6. Ng3 {[%clk 0:02:51]} 6... e5 {[%clk 0:02:45.5]}
7. d5 {[%clk 0:02:50.5]} 7... a5 {[%clk 0:02:43.4]} 8. Be2 {[%clk 0:02:50.3]}
8... Na6 {[%clk 0:02:43.2]} 9. O-O {[%clk 0:02:50.4]} 9... Nc5 {[%clk 0:02:43]}
10. Be3 {[%clk 0:02:50.2]} 10... Bd7 {[%clk 0:02:35.6]} 11. b3 {[%clk
0:02:44.7]} 11... c6 {[%clk 0:02:34]} 12. Rc1 {[%clk 0:02:43.2]} 12... cxd5
{[%clk 0:02:32.6]} 13. cxd5 {[%clk 0:02:40.7]} 13... Rc8 {[%clk 0:02:28.6]} 14.
f3 {[%clk 0:02:39.2]} 14... Qe7 {[%clk 0:02:25.8]} 15. Qd2 {[%clk 0:02:38.8]}
15... Rc7 {[%clk 0:02:25.7]} 16. Bb5 {[%clk 0:02:36.2]} 16... Rfc8 {[%clk
0:02:24.7]} 17. Bxd7 {[%clk 0:02:35.7]} 17... Nfxd7 {[%clk 0:02:25.6]} 18. Nb5
{[%clk 0:02:34.8]} 18... b6 {[%clk 0:02:19.5]} 19. Nxc7 {[%clk 0:02:33.5]} 19...
Rxc7 {[%clk 0:02:20.4]} 20. Rc2 {[%clk 0:02:30.4]} 20... Rc8 {[%clk 0:02:13.2]}
21. Rfc1 {[%clk 0:02:30.1]} 21... Rf8 {[%clk 0:02:12.5]} 22. Bh6 {[%clk
0:02:22.4]} 22... f5 {[%clk 0:02:11.5]} 23. Bxg7 {[%clk 0:02:21.7]} 23... Kxg7
{[%clk 0:02:05.8]} 24. Qc3 {[%clk 0:02:17]} 24... f4 {[%clk 0:01:56.9]} 25. Nf1
{[%clk 0:02:08.2]} 25... g5 {[%clk 0:01:56.7]} 26. a3 {[%clk 0:02:06.1]} 26...
Nf6 {[%clk 0:01:46.5]} 27. b4 {[%clk 0:02:04.2]} 27... axb4 {[%clk 0:01:47.4]}
28. axb4 {[%clk 0:02:03.6]} 28... Ncd7 {[%clk 0:01:48.3]} 29. Qd3 {[%clk
0:01:56.8]} 29... g4 {[%clk 0:01:47.5]} 30. Rc8 {[%clk 0:01:54.8]} 30... Rf7
{[%clk 0:01:43.8]} 31. R1c7 {[%clk 0:01:54]} 31... h5 {[%clk 0:01:38.5]} 32. Nd2
{[%clk 0:01:34.2]} 32... Nh7 {[%clk 0:01:32.4]} 33. Ra8 {[%clk 0:01:28.9]} 33...
Qh4 {[%clk 0:01:27.5]} 34. Raa7 {[%clk 0:01:25.4]} 34... Qe1+ {[%clk 0:01:14]}
35. Nf1 {[%clk 0:01:23.2]} 35... Nhf6 {[%clk 0:01:13.6]} 36. Qd2 {[%clk
0:01:18.4]} 36... Qb1 {[%clk 0:01:09.7]} 37. Qc3 {[%clk 0:01:06.8]} 37... Kg6
{[%clk 0:01:01.4]} 38. Qc6 {[%clk 0:01:03.8]} 38... Qxb4 {[%clk 0:00:30.8]} 39.
Qc4 {[%clk 0:00:50.3]} 39... Qe1 {[%clk 0:00:24.6]} 40. Qc1 {[%clk 0:00:41.4]}
40... Qe2 {[%clk 0:00:22.9]} 41. Qc2 {[%clk 0:00:37.2]} 41... Qe1 {[%clk
0:00:20.8]} 42. Qc1 {[%clk 0:00:36.3]} 42... Qb4 {[%clk 0:00:20.5]} 43. Qc3
{[%clk 0:00:35.3]} 43... Qb5 {[%clk 0:00:20.3]} 44. Qc4 {[%clk 0:00:24.3]} 44...
Qb2 {[%clk 0:00:19.8]} 45. Qc3 {[%clk 0:00:23.5]} 45... Qxc3 {[%clk 0:00:18.3]}
46. Rxc3 {[%clk 0:00:22.7]} 46... Nc5 {[%clk 0:00:18.8]} 47. Rxf7 {[%clk
0:00:21.5]} 47... Kxf7 {[%clk 0:00:19.7]} 48. Kf2 {[%clk 0:00:19.5]} 48... Nfd7
{[%clk 0:00:18.2]} 49. Nd2 {[%clk 0:00:19.5]} 49... b5 {[%clk 0:00:16]} 50. Ke2
{[%clk 0:00:13.5]} 50... b4 {[%clk 0:00:16.1]} 51. Rc4 {[%clk 0:00:12.1]} 51...
b3 {[%clk 0:00:13.4]} 52. Rb4 {[%clk 0:00:11.9]} 52... h4 {[%clk 0:00:10.3]} 53.
fxg4 {[%clk 0:00:11.2]} 53... Nf6 {[%clk 0:00:08.5]} 54. Kf3 {[%clk 0:00:09.5]}
54... Nd3 {[%clk 0:00:06.2]} 55. Rxb3 {[%clk 0:00:08.6]} 55... Ne1+ {[%clk
0:00:06.3]} 56. Kf2 {[%clk 0:00:08.1]} 56... Nc2 {[%clk 0:00:06.9]} 57. Rc3
{[%clk 0:00:07.2]} 57... Nd4 {[%clk 0:00:04.8]} 58. g5 {[%clk 0:00:06.5]} 58...
Ng4+ {[%clk 0:00:04]} 59. Kg1 {[%clk 0:00:05.6]} 59... Kg6 {[%clk 0:00:02.7]}
60. Rc8 {[%clk 0:00:04.6]} 60... Kxg5 {[%clk 0:00:02.2]} 61. h3 {[%clk
0:00:03.5]} 1-0

[Event "*** Titled Tuesday Blitz"]
[Site "Chess.com"]
[Date "2020.11.03"]
[Round "7"]
[White "FontVella8"]
[Black "Vesper2018"]
[Result "0-1"]
[WhiteElo "2483"]
[BlackElo "2616"]
[TimeControl "180+1"]
[EndTime "11:22:08 PST"]
[Termination "Vesper2018 won by resignation"]

1. e4 {[%clk 0:00:55.5]} 1... c5 {[%clk 0:02:49.1]} 2. Nf3 {[%clk 0:00:55.6]}
2... d6 {[%clk 0:02:49]} 3. d4 {[%clk 0:00:56.3]} 3... cxd4 {[%clk 0:02:49.5]}
4. Qxd4 {[%clk 0:00:57.2]} 4... Nf6 {[%clk 0:02:45.9]} 5. Be2 {[%clk 0:00:56.8]}
5... Nc6 {[%clk 0:02:43.9]} 6. Qe3 {[%clk 0:00:57.2]} 6... g6 {[%clk 0:02:43.6]}
7. c4 {[%clk 0:00:57.4]} 7... Bg7 {[%clk 0:02:43.6]} 8. Nc3 {[%clk 0:00:57.9]}
8... O-O {[%clk 0:02:43.5]} 9. O-O {[%clk 0:00:58.4]} 9... Bg4 {[%clk
0:02:37.6]} 10. Rd1 {[%clk 0:00:58]} 10... e5 {[%clk 0:02:36.8]} 11. b3 {[%clk
0:00:53.9]} 11... Bxf3 {[%clk 0:02:31]} 12. Bxf3 {[%clk 0:00:53.8]} 12... Nd4
{[%clk 0:02:31.5]} 13. Bb2 {[%clk 0:00:53.9]} 13... Nc2 {[%clk 0:02:31.3]} 14.
Qd2 {[%clk 0:00:51.2]} 14... Nxa1 {[%clk 0:02:31.8]} 15. Bxa1 {[%clk 0:00:52]}
15... Qa5 {[%clk 0:02:23.2]} 16. Qe3 {[%clk 0:00:45.6]} 16... Rfd8 {[%clk
0:02:20.5]} 17. Bb2 {[%clk 0:00:45.6]} 17... a6 {[%clk 0:02:07.6]} 18. a3 {[%clk
0:00:45.6]} 18... Rac8 {[%clk 0:02:06]} 19. b4 {[%clk 0:00:43.2]} 19... Qc7
{[%clk 0:02:05.6]} 20. Be2 {[%clk 0:00:43.8]} 20... Qe7 {[%clk 0:01:51.3]} 21.
g3 {[%clk 0:00:39.9]} 21... Qe6 {[%clk 0:01:50.6]} 22. Kg2 {[%clk 0:00:37.4]}
22... Rxc4 {[%clk 0:01:45]} 23. Bxc4 {[%clk 0:00:36.2]} 23... Qxc4 {[%clk
0:01:43.4]} 24. Qb6 {[%clk 0:00:34.7]} 24... Rd7 {[%clk 0:01:36.9]} 25. Rxd6
{[%clk 0:00:12.3]} 25... Rxd6 {[%clk 0:01:10.1]} 26. Qxd6 {[%clk 0:00:13.2]}
26... h5 {[%clk 0:01:10]} 27. f3 {[%clk 0:00:08]} 27... h4 {[%clk 0:01:05]} 28.
Qd2 {[%clk 0:00:07.4]} 28... hxg3 {[%clk 0:01:04.3]} 29. hxg3 {[%clk 0:00:07.5]}
29... b5 {[%clk 0:00:59.9]} 30. Nd5 {[%clk 0:00:07.7]} 30... Ne8 {[%clk
0:00:45]} 31. Bc3 {[%clk 0:00:03.6]} 31... Kf8 {[%clk 0:00:43.4]} 32. f4 {[%clk
0:00:03.5]} 32... Qxe4+ {[%clk 0:00:42.5]} 33. Kf2 {[%clk 0:00:03.5]} 33... exf4
{[%clk 0:00:31.8]} 34. Bxg7+ {[%clk 0:00:03.2]} 34... Nxg7 {[%clk 0:00:27.1]}
35. Nxf4 {[%clk 0:00:01.5]} 35... Nf5 {[%clk 0:00:22.7]} 36. Qc3 {[%clk
0:00:02.1]} 36... Qd4+ {[%clk 0:00:20.7]} 37. Qxd4 {[%clk 0:00:02.5]} 37... Nxd4
{[%clk 0:00:21.4]} 38. Ke3 {[%clk 0:00:02.6]} 38... Nc2+ {[%clk 0:00:21.3]} 39.
Ke4 {[%clk 0:00:03.1]} 39... Nxa3 {[%clk 0:00:22]} 40. Kd5 {[%clk 0:00:03.8]}
40... Nc4 {[%clk 0:00:17.8]} 41. Kc6 {[%clk 0:00:03.3]} 41... Kg7 {[%clk
0:00:16.2]} 42. Nd3 {[%clk 0:00:03.2]} 42... f5 {[%clk 0:00:16.1]} 43. Kb7
{[%clk 0:00:03.1]} 43... a5 {[%clk 0:00:15.3]} 44. bxa5 {[%clk 0:00:03.7]} 44...
Nxa5+ {[%clk 0:00:15.8]} 45. Kb6 {[%clk 0:00:04.3]} 45... Nc4+ {[%clk
0:00:16.2]} 46. Kxb5 {[%clk 0:00:05]} 46... Ne3 {[%clk 0:00:16.6]} 47. Kc5
{[%clk 0:00:03.4]} 47... Nf1 {[%clk 0:00:16.7]} 48. Kd5 {[%clk 0:00:04.1]} 48...
Nxg3 {[%clk 0:00:17]} 49. Ke5 {[%clk 0:00:04.9]} 49... g5 {[%clk 0:00:15.9]} 50.
Nc5 {[%clk 0:00:03.9]} 50... Kg6 {[%clk 0:00:16.1]} 51. Ne6 {[%clk 0:00:04.1]}
51... Kh5 {[%clk 0:00:11.8]} 52. Ng7+ {[%clk 0:00:03.4]} 52... Kg4 {[%clk
0:00:12.3]} 53. Ne6 {[%clk 0:00:03.4]} 53... f4 {[%clk 0:00:12.7]} 54. Kd4
{[%clk 0:00:04.3]} 54... Nf5+ {[%clk 0:00:11.6]} 55. Ke4 {[%clk 0:00:04.4]}
55... f3 {[%clk 0:00:11.8]} 56. Nxg5 {[%clk 0:00:03.9]} 56... f2 {[%clk
0:00:11.1]} 57. Nf3 {[%clk 0:00:04.4]} 57... Kg3 {[%clk 0:00:11.1]} 58. Nd2
{[%clk 0:00:04.1]} 58... Nd6+ {[%clk 0:00:09.9]} 59. Ke3 {[%clk 0:00:03.8]}
59... Nc4+ {[%clk 0:00:09.9]} 60. Nxc4 {[%clk 0:00:01.8]} 60... f1=Q {[%clk
0:00:09.8]} 61. Nd2 {[%clk 0:00:02.6]} 61... Qf4+ {[%clk 0:00:10.2]} 62. Kd3
{[%clk 0:00:02.6]} 62... Qe5 {[%clk 0:00:10.1]} 63. Nf1+ {[%clk 0:00:02.2]}
63... Kf2 {[%clk 0:00:10.1]} 64. Nd2 {[%clk 0:00:03.1]} 64... Qd5+ {[%clk
0:00:10.5]} 65. Kc3 {[%clk 0:00:03.2]} 65... Ke3 {[%clk 0:00:10.5]} 0-1

[Event "*** Titled Tuesday Blitz"]
[Site "Chess.com"]
[Date "2020.11.03"]
[Round "7"]
[White "Loy_Konstantin"]
[Black "LisikValera"]
[Result "1-0"]
[WhiteElo "2385"]
[BlackElo "2516"]
[TimeControl "180+1"]
[EndTime "11:22:08 PST"]
[Termination "Loy_Konstantin won on time"]

1. e4 {[%clk 0:03:00.9]} 1... e6 {[%clk 0:02:56.3]} 2. d3 {[%clk 0:03:00.8]}
2... d5 {[%clk 0:02:54.1]} 3. Nd2 {[%clk 0:03:01.3]} 3... Nf6 {[%clk 0:02:53.9]}
4. Ngf3 {[%clk 0:03:01.5]} 4... Nc6 {[%clk 0:02:54.4]} 5. c3 {[%clk 0:03:01.2]}
5... Bd6 {[%clk 0:02:54.3]} 6. Be2 {[%clk 0:02:59]} 6... e5 {[%clk 0:02:52.7]}
7. O-O {[%clk 0:02:58.9]} 7... O-O {[%clk 0:02:52.7]} 8. b4 {[%clk 0:02:59.3]}
8... a6 {[%clk 0:02:52.2]} 9. a3 {[%clk 0:02:58.5]} 9... Bg4 {[%clk 0:02:50.5]}
10. Re1 {[%clk 0:02:58.4]} 10... Re8 {[%clk 0:02:49.1]} 11. Bb2 {[%clk
0:02:58.7]} 11... Bf8 {[%clk 0:02:26.6]} 12. Qc2 {[%clk 0:02:58]} 12... Qd6
{[%clk 0:02:18.1]} 13. Nf1 {[%clk 0:02:51.2]} 13... Rad8 {[%clk 0:02:14.9]} 14.
Rad1 {[%clk 0:02:49.7]} 14... Bxf3 {[%clk 0:02:06.4]} 15. Bxf3 {[%clk
0:02:49.2]} 15... d4 {[%clk 0:02:06.4]} 16. cxd4 {[%clk 0:02:41.7]} 16... Nxd4
{[%clk 0:02:03.2]} 17. Bxd4 {[%clk 0:02:41.4]} 17... exd4 {[%clk 0:01:59.7]} 18.
g3 {[%clk 0:02:20.8]} 18... c5 {[%clk 0:01:58.6]} 19. bxc5 {[%clk 0:02:17]}
19... Qxc5 {[%clk 0:01:59.5]} 20. Qxc5 {[%clk 0:02:16.9]} 20... Bxc5 {[%clk
0:01:58]} 21. a4 {[%clk 0:02:16.4]} 21... Bb4 {[%clk 0:01:43.5]} 22. Re2 {[%clk
0:02:11.3]} 22... Bc3 {[%clk 0:01:44]} 23. Rb1 {[%clk 0:02:07.3]} 23... Rb8
{[%clk 0:01:42.9]} 24. e5 {[%clk 0:01:59.3]} 24... Nd7 {[%clk 0:01:42]} 25. Rxb7
{[%clk 0:01:45.6]} 25... Nc5 {[%clk 0:01:35.2]} 26. Ra7 {[%clk 0:01:24.1]} 26...
Nxd3 {[%clk 0:01:30.5]} 27. Bd5 {[%clk 0:01:17.3]} 27... Rxe5 {[%clk 0:01:14.8]}
28. Bxf7+ {[%clk 0:00:23.1]} 28... Kf8 {[%clk 0:01:03.6]} 29. Rxe5 {[%clk
0:00:23]} 29... Nxe5 {[%clk 0:01:02.8]} 30. Bh5 {[%clk 0:00:23.9]} 30... g6
{[%clk 0:00:52.5]} 31. Bd1 {[%clk 0:00:13.7]} 31... Rb1 {[%clk 0:00:50.5]} 32.
Bc2 {[%clk 0:00:13.7]} 32... Rc1 {[%clk 0:00:48]} 33. Be4 {[%clk 0:00:13.7]}
33... d3 {[%clk 0:00:48.1]} 34. Kg2 {[%clk 0:00:13.7]} 34... d2 {[%clk
0:00:48.2]} 35. Nxd2 {[%clk 0:00:13.4]} 35... Bxd2 {[%clk 0:00:46.9]} 36. Rxa6
{[%clk 0:00:13.9]} 36... Rc4 {[%clk 0:00:41.3]} 37. Bd5 {[%clk 0:00:11.9]} 37...
Rb4 {[%clk 0:00:37.3]} 38. Ra8+ {[%clk 0:00:11]} 38... Ke7 {[%clk 0:00:35.8]}
39. Ra7+ {[%clk 0:00:11.9]} 39... Kd6 {[%clk 0:00:35.8]} 40. Bg8 {[%clk
0:00:10.3]} 40... Rb2 {[%clk 0:00:34.2]} 41. Bxh7 {[%clk 0:00:07.6]} 41... Be3
{[%clk 0:00:33.4]} 42. Ra6+ {[%clk 0:00:07.7]} 42... Ke7 {[%clk 0:00:31.4]} 43.
Bg8 {[%clk 0:00:06.8]} 43... Rxf2+ {[%clk 0:00:30.4]} 44. Kh3 {[%clk 0:00:07.1]}
44... g5 {[%clk 0:00:30.8]} 45. Re6+ {[%clk 0:00:06.9]} 45... Kf8 {[%clk
0:00:27.3]} 46. Rxe5 {[%clk 0:00:07.8]} 46... Bd4 {[%clk 0:00:21.4]} 47. Re4
{[%clk 0:00:08]} 47... Bf6 {[%clk 0:00:18.1]} 48. Bd5 {[%clk 0:00:07.7]} 48...
Kg7 {[%clk 0:00:19]} 49. Kg4 {[%clk 0:00:07.8]} 49... Rd2 {[%clk 0:00:18.6]} 50.
Bc6 {[%clk 0:00:07.3]} 50... Ra2 {[%clk 0:00:18.2]} 51. Bb5 {[%clk 0:00:07.3]}
51... Rxh2 {[%clk 0:00:17.2]} 52. Kf5 {[%clk 0:00:06.9]} 52... Rf2+ {[%clk
0:00:16.3]} 53. Kg4 {[%clk 0:00:07.2]} 53... Ra2 {[%clk 0:00:15.6]} 54. Rc4
{[%clk 0:00:07.5]} 54... Ra3 {[%clk 0:00:13.2]} 55. Re4 {[%clk 0:00:07]} 55...
Bd8 {[%clk 0:00:12.2]} 56. Bc6 {[%clk 0:00:04.3]} 56... Kf6 {[%clk 0:00:10.8]}
57. Bd5 {[%clk 0:00:03.5]} 57... Bc7 {[%clk 0:00:09.3]} 58. Re6+ {[%clk
0:00:03.7]} 58... Kg7 {[%clk 0:00:08.3]} 59. Rc6 {[%clk 0:00:04.1]} 59... Bxg3
{[%clk 0:00:07.2]} 60. Kxg5 {[%clk 0:00:03.8]} 60... Be1 {[%clk 0:00:04.4]} 61.
Rg6+ {[%clk 0:00:03.6]} 61... Kf8 {[%clk 0:00:03.2]} 62. Kf6 {[%clk 0:00:03.8]}
1-0